[Event "Early-Titled-Tuesday-Blitz-August-29-2023"]
[Site "Chess.com"]
[Date "2023.08.29"]
[Round "8"]
[White "benny_aizenberg"]
[Black "only_strong_moves"]
[Result "1-0"]
[WhiteElo "2662"]
[BlackElo "2523"]
[TimeControl "180+1"]
[EndTime "9:29:22 PDT"]
[Termination "benny_aizenberg won by resignation"]

1. Nc3 {[%clk 0:02:54.8]} 1... Nf6 {[%clk 0:02:58.9]} 2. d4 {[%clk 0:02:54.1]}
2... d5 {[%clk 0:02:58.8]} 3. Bf4 {[%clk 0:02:47.6]} 3... c5 {[%clk 0:02:59.2]}
4. e3 {[%clk 0:02:44.6]} 4... cxd4 {[%clk 0:02:58.4]} 5. exd4 {[%clk 0:02:32.7]}
5... a6 {[%clk 0:02:58]} 6. Bd3 {[%clk 0:02:25.8]} 6... Nc6 {[%clk 0:02:55.1]}
7. Nge2 {[%clk 0:02:18.9]} 7... Bg4 {[%clk 0:02:50.3]} 8. f3 {[%clk 0:02:17.9]}
8... Bh5 {[%clk 0:02:49.8]} 9. h4 {[%clk 0:02:12.4]} 9... Bg6 {[%clk 0:02:49.2]}
10. g4 {[%clk 0:02:08.7]} 10... Bxd3 {[%clk 0:02:47.2]} 11. Qxd3 {[%clk
0:02:08.4]} 11... e6 {[%clk 0:02:46.8]} 12. Ng3 {[%clk 0:02:03.2]} 12... Bd6
{[%clk 0:02:45.4]} 13. Bxd6 {[%clk 0:01:56.4]} 13... Qxd6 {[%clk 0:02:46.3]} 14.
Kf2 {[%clk 0:01:53.5]} 14... O-O-O {[%clk 0:02:43.8]} 15. a3 {[%clk 0:01:43.8]}
15... Qf4 {[%clk 0:02:42.7]} 16. Nce2 {[%clk 0:01:30.4]} 16... Nxg4+ {[%clk
0:02:37]} 17. Ke1 {[%clk 0:01:22.3]} 17... Qc7 {[%clk 0:02:08.8]} 18. fxg4
{[%clk 0:01:20.9]} 18... e5 {[%clk 0:02:09.2]} 19. dxe5 {[%clk 0:00:54.5]} 19...
Nxe5 {[%clk 0:02:10.1]} 20. Qc3 {[%clk 0:00:46.3]} 20... Qxc3+ {[%clk
0:02:00.5]} 21. Nxc3 {[%clk 0:00:46]} 21... d4 {[%clk 0:01:55.8]} 22. Nce2
{[%clk 0:00:40.9]} 22... Nxg4 {[%clk 0:01:52.6]} 23. Kd2 {[%clk 0:00:40.5]}
23... g6 {[%clk 0:01:44.7]} 24. Raf1 {[%clk 0:00:28.8]} 24... f5 {[%clk
0:01:43.8]} 25. Rf4 {[%clk 0:00:22.8]} 25... Ne5 {[%clk 0:01:43]} 26. h5 {[%clk
0:00:18.3]} 26... d3 {[%clk 0:01:35.6]} 27. cxd3 {[%clk 0:00:14.8]} 27... Rxd3+
{[%clk 0:01:33.9]} 28. Kc2 {[%clk 0:00:13.9]} 28... Kb8 {[%clk 0:01:30.2]} 29.
hxg6 {[%clk 0:00:13.3]} 29... Rc8+ {[%clk 0:01:30.7]} 30. Kb1 {[%clk 0:00:11.2]}
30... hxg6 {[%clk 0:01:31.1]} 31. Re1 {[%clk 0:00:07.8]} 31... Nc4 {[%clk
0:01:27.7]} 32. Nf1 {[%clk 0:00:06.7]} 32... Rb3 {[%clk 0:01:23.5]} 33. Ka1
{[%clk 0:00:07.1]} 33... Nxb2 {[%clk 0:01:12.6]} 34. Nd4 {[%clk 0:00:07.1]}
34... Rb6 {[%clk 0:00:56.7]} 35. Rb1 {[%clk 0:00:07.3]} 35... Nc4 {[%clk
0:00:48.1]} 36. Rxb6 {[%clk 0:00:08.2]} 36... Nxb6 {[%clk 0:00:48.9]} 37. Rf3
{[%clk 0:00:08.8]} 37... Nc4 {[%clk 0:00:45.7]} 38. Ne2 {[%clk 0:00:08.5]} 38...
Rd8 {[%clk 0:00:43.3]} 39. Nf4 {[%clk 0:00:08]} 39... Rd6 {[%clk 0:00:28.6]} 40.
Ka2 {[%clk 0:00:07.4]} 40... g5 {[%clk 0:00:25.8]} 41. Nh5 {[%clk 0:00:07.6]}
41... f4 {[%clk 0:00:25.1]} 42. Kb3 {[%clk 0:00:06.3]} 42... Ne5 {[%clk
0:00:20.1]} 43. Rc3 {[%clk 0:00:06.5]} 43... Rd1 {[%clk 0:00:16.8]} 44. Nh2
{[%clk 0:00:05.9]} 44... Rh1 {[%clk 0:00:10.9]} 45. Rc2 {[%clk 0:00:06.2]} 45...
f3 {[%clk 0:00:07.7]} 46. Ng3 {[%clk 0:00:06.4]} 46... Rg1 {[%clk 0:00:07.2]}
47. Ne4 {[%clk 0:00:06.5]} 47... g4 {[%clk 0:00:07.1]} 48. Ng5 {[%clk
0:00:06.2]} 48... Rg2 {[%clk 0:00:03.9]} 49. Kc3 {[%clk 0:00:03.8]} 49... g3
{[%clk 0:00:02.2]} 50. Nhxf3 {[%clk 0:00:02.9]} 50... Rxc2+ {[%clk 0:00:02.1]}
51. Kxc2 {[%clk 0:00:03]} 51... Nc4 {[%clk 0:00:02.2]} 52. Kb3 {[%clk
0:00:02.4]} 52... Ne3 {[%clk 0:00:02.6]} 53. Nh3 {[%clk 0:00:01.2]} 53... Ng4
{[%clk 0:00:02.8]} 54. Nhg1 {[%clk 0:00:02.1]} 54... g2 {[%clk 0:00:02.7]} 55.
a4 {[%clk 0:00:02.9]} 55... Ne3 {[%clk 0:00:03.2]} 56. a5 {[%clk 0:00:03.4]}
56... Kc7 {[%clk 0:00:03.6]} 57. Kb4 {[%clk 0:00:03.8]} 57... Kc6 {[%clk
0:00:03.6]} 58. Nd4+ {[%clk 0:00:04.1]} 58... Kd5 {[%clk 0:00:03]} 59. Nde2
{[%clk 0:00:04.8]} 59... Nc2+ {[%clk 0:00:03]} 60. Kc3 {[%clk 0:00:05]} 60...
Ne1 {[%clk 0:00:03]} 61. Kd2 {[%clk 0:00:04.3]} 61... Kc4 {[%clk 0:00:03.2]} 62.
Kxe1 {[%clk 0:00:04.5]} 62... Kb5 {[%clk 0:00:03.9]} 63. Kf2 {[%clk 0:00:04.9]}
63... Kxa5 {[%clk 0:00:04.7]} 64. Kxg2 {[%clk 0:00:05.6]} 64... Kb4 {[%clk
0:00:05.5]} 65. Kf3 {[%clk 0:00:05.9]} 65... a5 {[%clk 0:00:06.4]} 66. Ke3
{[%clk 0:00:06.5]} 66... a4 {[%clk 0:00:07.3]} 67. Kd2 {[%clk 0:00:07.1]} 67...
a3 {[%clk 0:00:08.1]} 68. Kc2 {[%clk 0:00:07.4]} 68... a2 {[%clk 0:00:08.4]} 69.
Kb2 {[%clk 0:00:07.3]} 69... b5 {[%clk 0:00:08.3]} 70. Kxa2 {[%clk 0:00:07.1]}
70... Kc4 {[%clk 0:00:09.2]} 71. Nc1 {[%clk 0:00:05.8]} 71... b4 {[%clk
0:00:10.1]} 72. Nb3 {[%clk 0:00:06.1]} 72... Kd5 {[%clk 0:00:10.8]} 73. Ne2
{[%clk 0:00:06.2]} 73... Ke6 {[%clk 0:00:11.7]} 74. Kb2 {[%clk 0:00:06]} 74...
Kf7 {[%clk 0:00:12.6]} 75. Kc2 {[%clk 0:00:06.6]} 75... Kg8 {[%clk 0:00:13.5]}
76. Kd3 {[%clk 0:00:07.3]} 76... Kf8 {[%clk 0:00:14]} 77. Ke4 {[%clk 0:00:07.8]}
77... Kg8 {[%clk 0:00:14.7]} 78. Ke5 {[%clk 0:00:08.3]} 78... Kf8 {[%clk
0:00:15.6]} 79. Ke6 {[%clk 0:00:08.7]} 79... Ke8 {[%clk 0:00:16.5]} 80. Nf4
{[%clk 0:00:08]} 80... Kd8 {[%clk 0:00:17]} 81. Nd5 {[%clk 0:00:08.5]} 81... Kc8
{[%clk 0:00:16.6]} 82. Ke7 {[%clk 0:00:08.8]} 82... Kb7 {[%clk 0:00:16.7]} 83.
Kd7 {[%clk 0:00:09.4]} 83... Ka6 {[%clk 0:00:16.7]} 84. Kc6 {[%clk 0:00:09.7]}
84... Ka7 {[%clk 0:00:16.6]} 85. Nb6 {[%clk 0:00:07.2]} 85... Kb8 {[%clk
0:00:15.3]} 86. Nd5 {[%clk 0:00:04.8]} 86... Kc8 {[%clk 0:00:15.4]} 87. Nc7
{[%clk 0:00:05.3]} 87... Kd8 {[%clk 0:00:16]} 88. Kd6 {[%clk 0:00:06]} 88... Kc8
{[%clk 0:00:16]} 89. Ne6 {[%clk 0:00:06.5]} 89... Kb7 {[%clk 0:00:16.1]} 90. Kc5
{[%clk 0:00:07.1]} 90... Kc8 {[%clk 0:00:16.1]} 91. Kc6 {[%clk 0:00:07.4]} 91...
Kb8 {[%clk 0:00:16.8]} 92. Nec5 {[%clk 0:00:07.2]} 92... Kc8 {[%clk 0:00:17]}
93. Nb7 {[%clk 0:00:07.9]} 93... Kb8 {[%clk 0:00:17.6]} 94. Nd6 {[%clk
0:00:08.5]} 94... Ka7 {[%clk 0:00:17.6]} 95. Kb5 {[%clk 0:00:09.2]} 95... Kb8
{[%clk 0:00:18]} 96. Kb6 {[%clk 0:00:09.7]} 96... Ka8 {[%clk 0:00:18.7]} 97. Nb5
{[%clk 0:00:08.1]} 97... Kb8 {[%clk 0:00:19.1]} 98. Nd6 {[%clk 0:00:08.3]} 98...
Ka8 {[%clk 0:00:19.3]} 99. Kc7 {[%clk 0:00:07.4]} 99... Ka7 {[%clk 0:00:19.5]}
100. Nc5 {[%clk 0:00:06.7]} 100... b3 {[%clk 0:00:19.3]} 101. Nb5+ {[%clk
0:00:07]} 101... Ka8 {[%clk 0:00:19.6]} 102. Nd7 {[%clk 0:00:07.2]} 1-0

[Event "Early-Titled-Tuesday-Blitz-August-29-2023"]
[Site "Chess.com"]
[Date "2023.08.29"]
[Round "8"]
[White "Eternauta2400"]
[Black "FARIZA2018"]
[Result "1-0"]
[WhiteElo "2800"]
[BlackElo "2535"]
[TimeControl "180+1"]
[EndTime "9:29:49 PDT"]
[Termination "Eternauta2400 won by resignation"]

1. c4 {[%clk 0:03:00.9]} 1... e6 {[%clk 0:02:58.2]} 2. g3 {[%clk 0:03:00.8]}
2... d5 {[%clk 0:02:58.3]} 3. Bg2 {[%clk 0:03:01.7]} 3... Nf6 {[%clk 0:02:58.2]}
4. Nf3 {[%clk 0:03:02.3]} 4... dxc4 {[%clk 0:02:57.8]} 5. Qa4+ {[%clk
0:03:02.2]} 5... Nbd7 {[%clk 0:02:57.6]} 6. Qxc4 {[%clk 0:03:02.7]} 6... a6
{[%clk 0:02:56]} 7. Qc2 {[%clk 0:03:03.1]} 7... c5 {[%clk 0:02:55.2]} 8. Nc3
{[%clk 0:03:03]} 8... Be7 {[%clk 0:02:44.4]} 9. O-O {[%clk 0:03:02.4]} 9... O-O
{[%clk 0:02:43.9]} 10. d4 {[%clk 0:03:02.9]} 10... Rb8 {[%clk 0:02:38.6]} 11.
Bf4 {[%clk 0:03:01.5]} 11... Ra8 {[%clk 0:02:35]} 12. Rfd1 {[%clk 0:03:02]}
12... c4 {[%clk 0:02:28.8]} 13. Ne5 {[%clk 0:02:57.2]} 13... Nb6 {[%clk
0:02:24.3]} 14. e4 {[%clk 0:02:48.8]} 14... Bd7 {[%clk 0:02:16.1]} 15. d5 {[%clk
0:02:46.3]} 15... exd5 {[%clk 0:02:05.2]} 16. exd5 {[%clk 0:02:47.2]} 16... Bc5
{[%clk 0:01:57.5]} 17. d6 {[%clk 0:02:41.4]} 17... Rb8 {[%clk 0:01:52.8]} 18.
Ne4 {[%clk 0:02:26]} 18... Nxe4 {[%clk 0:01:50.2]} 19. Bxe4 {[%clk 0:02:26.9]}
19... h6 {[%clk 0:01:43]} 20. Nxc4 {[%clk 0:02:21.2]} 20... Nxc4 {[%clk
0:01:40.8]} 21. Qxc4 {[%clk 0:02:22.1]} 21... Qb6 {[%clk 0:01:37.9]} 22. Rd2
{[%clk 0:02:15.8]} 22... Rfc8 {[%clk 0:01:32.1]} 23. Qb3 {[%clk 0:02:14.1]}
23... Qxb3 {[%clk 0:01:16.9]} 24. axb3 {[%clk 0:02:15]} 24... Bb4 {[%clk
0:01:13.7]} 25. Rdd1 {[%clk 0:02:04.1]} 25... a5 {[%clk 0:01:10.9]} 26. Rac1
{[%clk 0:01:57.8]} 26... Re8 {[%clk 0:01:06.8]} 27. Bf3 {[%clk 0:01:55.3]} 27...
b5 {[%clk 0:01:00.8]} 28. Rc7 {[%clk 0:01:54.4]} 28... Rbd8 {[%clk 0:01:00.8]}
29. Rxd7 {[%clk 0:01:40.4]} 29... Rxd7 {[%clk 0:00:57.9]} 30. Bc6 {[%clk
0:01:41.1]} 30... Red8 {[%clk 0:00:56.4]} 31. Bxd7 {[%clk 0:01:41.2]} 31... Rxd7
{[%clk 0:00:56.4]} 32. Rd5 {[%clk 0:01:41.9]} 32... f6 {[%clk 0:00:45.9]} 33.
Rxb5 {[%clk 0:01:41.2]} 33... g5 {[%clk 0:00:46.1]} 34. Be3 {[%clk 0:01:39.6]}
34... Rxd6 {[%clk 0:00:46.1]} 35. Bb6 {[%clk 0:01:33.9]} 35... Rd2 {[%clk
0:00:45.3]} 36. Bxa5 {[%clk 0:01:31.4]} 36... Bxa5 {[%clk 0:00:45.4]} 37. Rxa5
{[%clk 0:01:32.3]} 37... Rxb2 {[%clk 0:00:45.6]} 38. Rb5 {[%clk 0:01:33.2]}
38... Kf7 {[%clk 0:00:45.5]} 39. g4 {[%clk 0:01:32.6]} 39... Kg6 {[%clk
0:00:39.9]} 40. h3 {[%clk 0:01:33]} 40... h5 {[%clk 0:00:39.5]} 41. Kg2 {[%clk
0:01:32.7]} 41... h4 {[%clk 0:00:35.7]} 42. Rb6 {[%clk 0:01:32.2]} 42... Rb1
{[%clk 0:00:35.5]} 43. b4 {[%clk 0:01:31.5]} 43... Rb3 {[%clk 0:00:35.5]} 44. b5
{[%clk 0:01:31.3]} 44... Rb2 {[%clk 0:00:34.3]} 45. Rb8 {[%clk 0:01:31.5]} 45...
Rb3 {[%clk 0:00:34.1]} 46. b6 {[%clk 0:01:32.1]} 46... Kg7 {[%clk 0:00:34.5]}
47. b7 {[%clk 0:01:27.7]} 47... Kh7 {[%clk 0:00:24.9]} 48. Kf1 {[%clk
0:01:25.7]} 48... Rb2 {[%clk 0:00:20.7]} 49. Ke1 {[%clk 0:01:26.1]} 49... Kg7
{[%clk 0:00:20.5]} 50. Kd1 {[%clk 0:01:25.7]} 50... Rb3 {[%clk 0:00:17.9]} 51.
Kd2 {[%clk 0:01:25.9]} 51... Rb6 {[%clk 0:00:16.7]} 52. Kc3 {[%clk 0:01:25.6]}
52... Rb1 {[%clk 0:00:16.6]} 53. Kd4 {[%clk 0:01:25.6]} 53... Rd1+ {[%clk
0:00:16]} 54. Kc5 {[%clk 0:01:25.8]} 54... Rc1+ {[%clk 0:00:16.2]} 55. Kd6
{[%clk 0:01:26.3]} 55... Rd1+ {[%clk 0:00:16.2]} 56. Ke6 {[%clk 0:01:25.1]}
56... Re1+ {[%clk 0:00:16.2]} 57. Kd5 {[%clk 0:01:24.9]} 57... Rd1+ {[%clk
0:00:16.2]} 58. Ke4 {[%clk 0:01:21.4]} 58... Re1+ {[%clk 0:00:16.3]} 59. Kf3
{[%clk 0:01:21.9]} 59... Rb1 {[%clk 0:00:16.4]} 60. Ke3 {[%clk 0:01:22.3]} 60...
Re1+ {[%clk 0:00:16.2]} 61. Kd4 {[%clk 0:01:21.7]} 61... Rd1+ {[%clk 0:00:16]}
62. Kc3 {[%clk 0:01:22]} 62... Rb1 {[%clk 0:00:15.3]} 63. f3 {[%clk 0:01:21.5]}
63... Kh7 {[%clk 0:00:14.5]} 64. Kd4 {[%clk 0:01:20.4]} 64... Kg7 {[%clk
0:00:14.4]} 65. Kc4 {[%clk 0:01:15.5]} 65... Rc1+ {[%clk 0:00:14.1]} 66. Kd3
{[%clk 0:01:14.2]} 66... Rb1 {[%clk 0:00:13.6]} 67. Ke3 {[%clk 0:01:13]} 67...
Re1+ {[%clk 0:00:13.2]} 68. Kf2 {[%clk 0:01:11.7]} 68... Rb1 {[%clk 0:00:13.5]}
69. Ke2 {[%clk 0:01:01.7]} 69... Kh7 {[%clk 0:00:12.9]} 70. Rf8 {[%clk
0:00:57.1]} 70... Rxb7 {[%clk 0:00:12.3]} 71. Rxf6 {[%clk 0:00:57.8]} 71... Kg7
{[%clk 0:00:12]} 72. Rf5 {[%clk 0:00:54.9]} 72... Kg6 {[%clk 0:00:12.2]} 73. f4
{[%clk 0:00:50.7]} 73... gxf4 {[%clk 0:00:09.5]} 74. Rxf4 {[%clk 0:00:51.6]}
74... Rb3 {[%clk 0:00:09.5]} 75. Rf3 {[%clk 0:00:51.6]} 75... Rb2+ {[%clk
0:00:09.8]} 76. Ke3 {[%clk 0:00:51.9]} 76... Rb3+ {[%clk 0:00:08.4]} 77. Ke4
{[%clk 0:00:52.8]} 77... Rb4+ {[%clk 0:00:08.5]} 78. Kd5 {[%clk 0:00:53.3]}
78... Rb5+ {[%clk 0:00:08.8]} 79. Kc6 {[%clk 0:00:53.8]} 79... Rb2 {[%clk
0:00:08.9]} 80. Rc3 {[%clk 0:00:52.5]} 80... Kg5 {[%clk 0:00:08.4]} 81. Rf3
{[%clk 0:00:49.7]} 81... Rd2 {[%clk 0:00:08.6]} 82. Rf5+ {[%clk 0:00:47.8]}
82... Kg6 {[%clk 0:00:08.4]} 83. Rh5 {[%clk 0:00:48.7]} 83... Rc2+ {[%clk
0:00:04.2]} 84. Kd5 {[%clk 0:00:48.6]} 84... Rc3 {[%clk 0:00:04.2]} 85. Rxh4
{[%clk 0:00:48.4]} 85... Rd3+ {[%clk 0:00:04]} 86. Ke4 {[%clk 0:00:48.5]} 86...
Rd8 {[%clk 0:00:03.6]} 87. Kf4 {[%clk 0:00:47.5]} 87... Rf8+ {[%clk 0:00:03.8]}
88. Kg3 {[%clk 0:00:47.7]} 88... Kg5 {[%clk 0:00:03.9]} 89. Rh5+ {[%clk
0:00:47.8]} 89... Kg6 {[%clk 0:00:04.5]} 90. Ra5 {[%clk 0:00:48.5]} 90... Rd8
{[%clk 0:00:04.3]} 91. Ra3 {[%clk 0:00:47.7]} 91... Rd4 {[%clk 0:00:04.4]} 92.
h4 {[%clk 0:00:47.3]} 92... Rb4 {[%clk 0:00:04.8]} 93. h5+ {[%clk 0:00:46.8]}
93... Kg5 {[%clk 0:00:04.6]} 94. Ra5+ {[%clk 0:00:47.1]} 94... Kh6 {[%clk
0:00:04.9]} 95. Kh4 {[%clk 0:00:47.4]} 95... Rc4 {[%clk 0:00:04.3]} 96. Ra6+
{[%clk 0:00:47.8]} 96... Kg7 {[%clk 0:00:04.7]} 97. Rd6 {[%clk 0:00:43.6]} 97...
Rb4 {[%clk 0:00:04.5]} 98. Rd5 {[%clk 0:00:42.4]} 98... Rc4 {[%clk 0:00:04.8]}
99. Kg5 {[%clk 0:00:42.2]} 99... Rc7 {[%clk 0:00:05.1]} 100. Ra5 {[%clk
0:00:40.5]} 100... Rb7 {[%clk 0:00:05.2]} 101. Kf5 {[%clk 0:00:39.1]} 101...
Rf7+ {[%clk 0:00:04.4]} 102. Kg5 {[%clk 0:00:37.9]} 102... Rb7 {[%clk
0:00:04.7]} 103. h6+ {[%clk 0:00:34.9]} 103... Kh7 {[%clk 0:00:04.9]} 104. Kh5
{[%clk 0:00:35.8]} 104... Rb6 {[%clk 0:00:04.1]} 105. g5 {[%clk 0:00:33.6]}
105... Rb7 {[%clk 0:00:04.1]} 106. g6+ {[%clk 0:00:33.2]} 1-0

[Event "Early-Titled-Tuesday-Blitz-August-29-2023"]
[Site "Chess.com"]
[Date "2023.08.29"]
[Round "9"]
[White "Zhani-Z"]
[Black "viktorgen2021"]
[Result "0-1"]
[WhiteElo "2324"]
[BlackElo "2441"]
[TimeControl "180+1"]
[EndTime "9:37:19 PDT"]
[Termination "viktorgen2021 won by resignation"]

1. e4 {[%clk 0:03:00.9]} 1... g6 {[%clk 0:02:52.7]} 2. Nc3 {[%clk 0:02:56.3]}
2... Bg7 {[%clk 0:02:52.6]} 3. g3 {[%clk 0:02:55.6]} 3... d6 {[%clk 0:02:53.2]}
4. Bg2 {[%clk 0:02:55.7]} 4... Nf6 {[%clk 0:02:53.9]} 5. Nge2 {[%clk 0:02:55.2]}
5... O-O {[%clk 0:02:54.5]} 6. d3 {[%clk 0:02:55.5]} 6... c6 {[%clk 0:02:55.2]}
7. h3 {[%clk 0:02:47.6]} 7... e5 {[%clk 0:02:53.6]} 8. Be3 {[%clk 0:02:47.7]}
8... b5 {[%clk 0:02:52.8]} 9. Qd2 {[%clk 0:02:46.2]} 9... Nbd7 {[%clk
0:02:51.9]} 10. h4 {[%clk 0:02:46]} 10... h5 {[%clk 0:02:50.3]} 11. O-O-O {[%clk
0:02:40.8]} 11... Qa5 {[%clk 0:02:48.8]} 12. Kb1 {[%clk 0:02:35.5]} 12... b4
{[%clk 0:02:44.2]} 0-1

[Event "Early-Titled-Tuesday-Blitz-August-29-2023"]
[Site "Chess.com"]
[Date "2023.08.29"]
[Round "9"]
[White "crazy_m_attack"]
[Black "Jackalhead_Anubis"]
[Result "1-0"]
[WhiteElo "2345"]
[BlackElo "2420"]
[TimeControl "180+1"]
[EndTime "9:38:40 PDT"]
[Termination "crazy_m_attack won by resignation"]

1. e4 {[%clk 0:03:00.9]} 1... c5 {[%clk 0:02:57.8]} 2. Nf3 {[%clk 0:03:01.2]}
2... d6 {[%clk 0:02:56.6]} 3. d4 {[%clk 0:03:01.3]} 3... cxd4 {[%clk 0:02:57.5]}
4. Nxd4 {[%clk 0:03:02.2]} 4... Nf6 {[%clk 0:02:56.7]} 5. Nc3 {[%clk 0:03:02.5]}
5... a6 {[%clk 0:02:57.1]} 6. Be2 {[%clk 0:03:01.8]} 6... e5 {[%clk 0:02:56.3]}
7. Nf3 {[%clk 0:02:58.2]} 7... Be7 {[%clk 0:02:56.9]} 8. Bg5 {[%clk 0:02:56.8]}
8... Nbd7 {[%clk 0:02:55.8]} 9. a4 {[%clk 0:02:55.9]} 9... O-O {[%clk
0:02:50.1]} 10. O-O {[%clk 0:02:49.6]} 10... h6 {[%clk 0:02:48.3]} 11. Be3
{[%clk 0:02:49.2]} 11... b6 {[%clk 0:02:46.2]} 12. Nd2 {[%clk 0:02:47.6]} 12...
Bb7 {[%clk 0:02:44.5]} 13. Nc4 {[%clk 0:02:41.3]} 13... Rc8 {[%clk 0:02:39.6]}
14. Nxd6 {[%clk 0:02:27.3]} 14... Bxd6 {[%clk 0:02:37.4]} 15. Qxd6 {[%clk
0:02:28.2]} 15... Nxe4 {[%clk 0:02:29.3]} 16. Nxe4 {[%clk 0:02:26.3]} 16... Bxe4
{[%clk 0:02:30.2]} 17. Rfd1 {[%clk 0:02:18.3]} 17... Rxc2 {[%clk 0:02:17.3]} 18.
Bxa6 {[%clk 0:02:09.6]} 18... Nb8 {[%clk 0:02:08.1]} 19. Qxd8 {[%clk 0:02:07]}
1-0

[Event "Early-Titled-Tuesday-Blitz-August-29-2023"]
[Site "Chess.com"]
[Date "2023.08.29"]
[Round "9"]
[White "Caisachess"]
[Black "ural58"]
[Result "0-1"]
[WhiteElo "2339"]
[BlackElo "2516"]
[TimeControl "180+1"]
[EndTime "9:38:48 PDT"]
[Termination "ural58 won by resignation"]

1. e4 {[%clk 0:03:00.9]} 1... d5 {[%clk 0:02:25.2]} 2. exd5 {[%clk 0:02:58.1]}
2... Qxd5 {[%clk 0:02:24.9]} 3. d4 {[%clk 0:02:56.4]} 3... Nc6 {[%clk
0:02:22.6]} 4. Be3 {[%clk 0:02:49.4]} 4... e5 {[%clk 0:02:18.8]} 5. c4 {[%clk
0:02:45.4]} 5... Qa5+ {[%clk 0:02:18.5]} 6. Bd2 {[%clk 0:02:42.7]} 6... Bb4
{[%clk 0:02:18.3]} 7. d5 {[%clk 0:02:38.1]} 7... Nd4 {[%clk 0:02:17.8]} 8. Nf3
{[%clk 0:02:33.8]} 8... Bxd2+ {[%clk 0:02:08.9]} 9. Nbxd2 {[%clk 0:02:33.2]}
9... Bf5 {[%clk 0:02:01.2]} 10. Nxd4 {[%clk 0:02:30.3]} 10... exd4 {[%clk
0:02:01.3]} 11. Qe2+ {[%clk 0:02:19.1]} 11... Kf8 {[%clk 0:02:00]} 12. Kd1
{[%clk 0:02:05.1]} 12... Re8 {[%clk 0:01:58.8]} 13. Qf3 {[%clk 0:02:04.9]} 13...
Nh6 {[%clk 0:01:52.8]} 14. Bd3 {[%clk 0:02:01]} 14... Bg4 {[%clk 0:01:52.1]} 0-1

[Event "Early-Titled-Tuesday-Blitz-August-29-2023"]
[Site "Chess.com"]
[Date "2023.08.29"]
[Round "9"]
[White "Irina_Barchuk"]
[Black "Herman-NY"]
[Result "1-0"]
[WhiteElo "2372"]
[BlackElo "2434"]
[TimeControl "180+1"]
[EndTime "9:38:52 PDT"]
[Termination "Irina_Barchuk won by resignation"]

1. d4 {[%clk 0:02:59.6]} 1... Nf6 {[%clk 0:03:00]} 2. Bf4 {[%clk 0:02:58]} 2...
g6 {[%clk 0:03:00.3]} 3. Nc3 {[%clk 0:02:57.2]} 3... d5 {[%clk 0:02:58]} 4. Qd2
{[%clk 0:02:56.1]} 4... h6 {[%clk 0:02:57.6]} 5. O-O-O {[%clk 0:02:55.7]} 5...
c6 {[%clk 0:02:57]} 6. Nf3 {[%clk 0:02:56.1]} 6... b5 {[%clk 0:02:56.9]} 7. Ne5
{[%clk 0:02:56.2]} 7... Qa5 {[%clk 0:02:36.6]} 8. a3 {[%clk 0:02:45.6]} 8... e6
{[%clk 0:02:23.8]} 9. f3 {[%clk 0:02:44.9]} 9... a6 {[%clk 0:01:02.3]} 10. Kb1
{[%clk 0:02:41.4]} 10... Bb7 {[%clk 0:01:00.1]} 11. Nxd5 {[%clk 0:02:36.4]} 1-0

[Event "Early-Titled-Tuesday-Blitz-August-29-2023"]
[Site "Chess.com"]
[Date "2023.08.29"]
[Round "9"]
[White "kidagent"]
[Black "Mikhail_Golubev"]
[Result "0-1"]
[WhiteElo "2275"]
[BlackElo "2545"]
[TimeControl "180+1"]
[EndTime "9:39:26 PDT"]
[Termination "Mikhail_Golubev won by resignation"]

1. e4 {[%clk 0:03:00.9]} 1... c5 {[%clk 0:02:58.6]} 2. Nf3 {[%clk 0:02:59.3]}
2... d6 {[%clk 0:02:58.7]} 3. d4 {[%clk 0:02:59.4]} 3... cxd4 {[%clk 0:02:57.9]}
4. Nxd4 {[%clk 0:03:00.3]} 4... Nf6 {[%clk 0:02:57.7]} 5. Nc3 {[%clk 0:03:01.1]}
5... g6 {[%clk 0:02:58]} 6. Bc4 {[%clk 0:02:56.2]} 6... Bg7 {[%clk 0:02:57.8]}
7. Be3 {[%clk 0:02:55.2]} 7... O-O {[%clk 0:02:54]} 8. f3 {[%clk 0:02:54.5]}
8... Nc6 {[%clk 0:02:52.8]} 9. Qd2 {[%clk 0:02:49]} 9... Nxd4 {[%clk 0:02:46.5]}
10. Bxd4 {[%clk 0:02:48.6]} 10... Be6 {[%clk 0:02:47.1]} 11. Bxe6 {[%clk
0:02:47.4]} 11... fxe6 {[%clk 0:02:46.1]} 12. O-O-O {[%clk 0:02:39.5]} 12... Qa5
{[%clk 0:02:39.3]} 13. Kb1 {[%clk 0:02:36.5]} 13... Nd7 {[%clk 0:02:33.9]} 14.
Bxg7 {[%clk 0:02:34.8]} 14... Kxg7 {[%clk 0:02:33.7]} 15. h4 {[%clk 0:02:32.9]}
15... h5 {[%clk 0:02:31.3]} 16. g4 {[%clk 0:02:27.5]} 16... Rxf3 {[%clk
0:02:27.7]} 17. gxh5 {[%clk 0:02:27.4]} 17... Qxh5 {[%clk 0:02:26.3]} 18. Rdg1
{[%clk 0:02:22.4]} 18... Raf8 {[%clk 0:02:10.9]} 19. a3 {[%clk 0:02:17.2]} 19...
Ne5 {[%clk 0:02:00]} 20. Ne2 {[%clk 0:02:13.9]} 20... Rf2 {[%clk 0:01:55.3]} 21.
Re1 {[%clk 0:02:05.1]} 21... Nf3 {[%clk 0:01:47]} 22. Qc3+ {[%clk 0:02:05]}
22... Qe5 {[%clk 0:01:46.4]} 0-1

[Event "Early-Titled-Tuesday-Blitz-August-29-2023"]
[Site "Chess.com"]
[Date "2023.08.29"]
[Round "9"]
[White "Flaccidmoves"]
[Black "DrDreBeats"]
[Result "0-1"]
[WhiteElo "2488"]
[BlackElo "2618"]
[TimeControl "180+1"]
[EndTime "9:40:12 PDT"]
[Termination "DrDreBeats won by resignation"]

1. c4 {[%clk 0:03:00.9]} 1... Nf6 {[%clk 0:02:59.6]} 2. Nc3 {[%clk 0:03:01.1]}
2... g6 {[%clk 0:02:59.3]} 3. e4 {[%clk 0:03:01.3]} 3... Bg7 {[%clk 0:02:58.1]}
4. d4 {[%clk 0:03:01.9]} 4... O-O {[%clk 0:02:58.2]} 5. Nf3 {[%clk 0:03:02.6]}
5... d6 {[%clk 0:02:57.2]} 6. h3 {[%clk 0:03:03.1]} 6... e5 {[%clk 0:02:56.8]}
7. d5 {[%clk 0:03:03.7]} 7... Nfd7 {[%clk 0:02:56.7]} 8. g4 {[%clk 0:02:55.1]}
8... a5 {[%clk 0:02:55]} 9. Be3 {[%clk 0:02:48.7]} 9... f5 {[%clk 0:02:51.8]}
10. gxf5 {[%clk 0:02:48.2]} 10... gxf5 {[%clk 0:02:51.6]} 11. exf5 {[%clk
0:02:45]} 11... Nc5 {[%clk 0:02:51.6]} 12. Bxc5 {[%clk 0:01:51.8]} 12... dxc5
{[%clk 0:02:51.2]} 13. Bd3 {[%clk 0:01:52.4]} 13... Bxf5 {[%clk 0:02:50.1]} 14.
Bxf5 {[%clk 0:01:37]} 14... Rxf5 {[%clk 0:02:48.5]} 15. Ne4 {[%clk 0:01:35]}
15... Rf4 {[%clk 0:02:48.6]} 16. Nfd2 {[%clk 0:01:33.5]} 16... Nd7 {[%clk
0:02:37.3]} 17. Qe2 {[%clk 0:01:30.5]} 17... a4 {[%clk 0:02:34.2]} 18. Rg1
{[%clk 0:01:25.1]} 18... Kh8 {[%clk 0:02:33.2]} 19. O-O-O {[%clk 0:01:12.5]}
19... a3 {[%clk 0:02:26.9]} 20. b3 {[%clk 0:01:10.9]} 20... b6 {[%clk 0:02:20]}
21. Rg4 {[%clk 0:01:08.1]} 21... Nf6 {[%clk 0:02:16.7]} 22. Nxf6 {[%clk
0:01:06]} 22... Qxf6 {[%clk 0:02:16.4]} 23. Ne4 {[%clk 0:01:06.4]} 23... Qh6
{[%clk 0:02:09.3]} 24. Kb1 {[%clk 0:00:58.3]} 24... Qxh3 {[%clk 0:02:04.3]} 25.
Rxg7 {[%clk 0:00:56.8]} 25... Kxg7 {[%clk 0:02:02.9]} 26. Ng5 {[%clk 0:00:57.1]}
26... Qf5+ {[%clk 0:02:01.1]} 0-1